Workbook

Sheet Despesas
B3: Orçamento de Evento para [Nome do Evento]
H4: Despesas
H6: Despesas Estimadas | I6: Rendimentos Reais
C7: Despesas Totais | H7: =SUM(D14,D22,D28,D35,H14,H22,H27) -> 1,145.00 € | I7: =SUM(E14,E22,E28,E35,I14,I22,I27) -> 395.00 €
C9: Local | D9: Estimado | E9: Rendimentos Reais | G9: Catering | H9: Despesas Estimadas | I9: Rendimentos Reais
C10: Taxas dos quartos e salas | D10: 500.00 € | E10: 250.00 € | G10: Alimentação
C11: Funcionários do local | D11: 400.00 € | E11: 50.00 € | G11: Bebidas
C12: Equipamento | G12: Roupa de Mesa
C13: Mesas e cadeiras | G13: Funcionários e gorjetas
C14: Total | D14: =SUBTOTAL(109,Tabela1[Estimado]) -> 900.00 € | E14: =SUBTOTAL(109,Tabela1[Rendimentos Reais]) -> 300.00 € | G14: Total | H14: =SUBTOTAL(109,Tabela5[Despesas Estimadas]) -> 0.00 € | I14: =SUBTOTAL(109,Tabela5[Rendimentos Reais]) -> 0.00 €
C16: Decorações | D16: Despesas Estimadas | E16: Rendimentos Reais | G16: Programa | H16: Despesas Estimadas | I16: Rendimentos Reais
C17: Flores | D17: 200.00 € | E17: 50.00 € | G17: Intérpretes
C18: Velas | G18: Oradores
C19: Iluminação | G19: Viagens
C20: Balões | G20: Hotel
C21: Fornecimento de papel | G21: Outros
C22: Total | D22: =SUBTOTAL(109,Tabela2[Despesas Estimadas]) -> 200.00 € | E22: =SUBTOTAL(109,Tabela2[Rendimentos Reais]) -> 50.00 € | G22: Total | H22: =SUBTOTAL(109,Tabela6[Despesas Estimadas]) -> 0.00 € | I22: =SUBTOTAL(109,Tabela6[Rendimentos Reais]) -> 0.00 €
C24: Publicidade | D24: Despesas Estimadas | E24: Rendimentos Reais | G24: Prémios | H24: Despesas Estimadas | I24: Real
C25: Design gráfico | D25: 45.00 € | E25: 45.00 € | G25: Fitas/Condecorações/Troféus
C26: Fotocópias/Impressões | G26: Presentes
C27: Correio | G27: Total | H27: =SUBTOTAL(109,Tabela7[Despesas Estimadas]) -> 0.00 € | I27: =SUBTOTAL(109,Tabela7[Real]) -> 0.00 €
C28: Total | D28: =SUBTOTAL(109,Tabela3[Despesas Estimadas]) -> 45.00 € | E28: =SUBTOTAL(109,Tabela3[Rendimentos Reais]) -> 45.00 €
C30: Diversos | D30: Despesas Estimadas | E30: Real
C31: Telefone
C32: Transportes
C33: Fornecimento de papelaria
C34: Serviços de fax
C35: Total | D35: =SUBTOTAL(109,Tabela4[Despesas Estimadas]) -> 0.00 € | E35: =SUBTOTAL(109,Tabela4[Real]) -> 0.00 €

Sheet Rendimentos
B3: Orçamento de Evento para [Nome do Evento]
F4: Rendimentos
F6: Estimado | G6: Rendimentos Reais
B7: Rendimentos Totais | F7: =SUM(F14,F21,F28,F36) -> 1,936.00 € | G7: =SUM(G14,G21,G28,G36) -> 1,831.00 €
B9: Entradas
B10: Rendimentos Estimados | C10: Rendimentos Reais | F10: Despesas Estimadas | G10: Rendimentos Reais
B11: 300 | C11: 278 | D11: Adultos / | E11: 5.00 € | F11: =B11*E11 -> 1,500.00 € | G11: =C11*E11 -> 1,390.00 €
B12: 197 | C12: 195 | D12: Crianças / | E12: 2.00 € | F12: =B12*E12 -> 394.00 € | G12: =C12*E12 -> 390.00 €
B13: 42 | C13: 51 | D13: Outros / | E13: 1.00 € | F13: =B13*E13 -> 42.00 € | G13: =C13*E13 -> 51.00 €
F14: =SUM(F11:F13) -> 1,936.00 € | G14: =SUM(G11:G13) -> 1,831.00 €
B16: Anúncios no programa
B17: Rendimentos Estimados | C17: Rendimentos Reais | F17: Despesas Estimadas | G17: Rendimentos Reais
D18: Capas / | F18: =B18*E18 -> 0.00 € | G18: =C18*E18 -> 0.00 €
D19: Meias-páginas / | F19: =B19*E19 -> 0.00 € | G19: =C19*E19 -> 0.00 €
D20: Quartos-de-páginas / | F20: =B20*E20 -> 0.00 € | G20: =C20*E20 -> 0.00 €
F21: =SUM(F18:F20) -> 0.00 € | G21: =SUM(G18:G20) -> 0.00 €
B23: Expositores/vendedores
B24: Rendimentos Estimados | C24: Rendimentos Reais | F24: Despesas Estimadas | G24: Rendimentos Reais
D25: Stands grandes / | F25: =B25*E25 -> 0.00 € | G25: =C25*E25 -> 0.00 €
D26: Stands médios / | F26: =B26*E26 -> 0.00 € | G26: =C26*E26 -> 0.00 €
D27: Stands pequenos / | F27: =B27*E27 -> 0.00 € | G27: =C27*E27 -> 0.00 €
F28: =SUM(F25:F27) -> 0.00 € | G28: =SUM(G25:G27) -> 0.00 €
B30: Itens vendidos
B31: Rendimentos Estimados | C31: Real | F31: Despesas Estimadas | G31: Real
D32: Itens / | F32: =B32*E32 -> 0.00 € | G32: =C32*E32 -> 0.00 €
D33: Itens / | F33: =B33*E33 -> 0.00 € | G33: =C33*E33 -> 0.00 €
D34: Itens / | F34: =B34*E34 -> 0.00 € | G34: =C34*E34 -> 0.00 €
D35: Itens / | F35: =B35*E35 -> 0.00 € | G35: =C35*E35 -> 0.00 €
F36: =SUM(F32:F35) -> 0.00 € | G36: =SUM(G32:G35) -> 0.00 €

Sheet Resumo
B3: Orçamento de Evento para [Nome do Evento]
F4: Resumo dos Lucros e Perdas
F6: Rendimentos Estimados | G6: Rendimentos Reais
B7: Rendimentos totais | F7: =Rendimentos!F7 -> 1,936.00 € | G7: =Rendimentos!G7 -> 1,831.00 €
B8: Despesas totais | F8: =Despesas!H7 -> 1,145.00 € | G8: =Despesas!I7 -> 395.00 €
B9: Lucros (ou perdas) totais | F9: =F7-F8 -> 791.00 € | G9: =G7-G8 -> 1,436.00 €
